bitfinex-derivatives/quotes_ETHF0:USTF0_20250616
["timestamp","ask_amount","ask_price","bid_price","bid_amount"]
[1750084524500,37.518,2654.9,2653.0,3.76829]
[1750084524501,1.88319,2654.4,2653.5,3.2078]
[1750084524699,38.8146,2654.3,2653.5,3.2078]
[1750084524900,0.75337,2654.1,2653.6,1.88375]
[1750084525098,37.516,2654.2,2653.5,3.2078]
[1750084525099,37.516,2654.2,2653.7,1.2713]
[1750084525312,28.189,2654.1,2654.0,0.75339]
[1750084525907,28.189,2654.1,2653.7,1.2713]
[1750084526119,28.189,2654.1,2654.0,0.75338]
[1750084526504,28.94236,2654.1,2654.0,0.75338]
[1750084526705,28.189,2654.1,2654.0,0.75338]
[1750084526910,3.8466,2655.0,2654.0,3.2078]
[1750084527108,0.75325,2654.5,2654.1,1.2246]
[1750084527308,0.75322,2654.6,2654.1,1.2246]
[1750084527503,37.462,2654.7,2654.6,0.75321]
[1750084527712,9.318,2654.9,2654.7,0.75319]
[1750084528113,0.75313,2654.9,2654.7,0.75319]
[1750084528311,28.11464175,2654.8,2654.7,0.75319]
[1750084528700,0.00564175,2654.8,2654.7,3.96099]
[1750084529010,28.078,2655.1,2655.0,0.7531]
[1750084529307,9.318,2655.4,2655.3,0.75302]
[1750084529516,3.2078,2656.2,2655.5,1.8824]
[1750084529704,3.2078,2656.2,2655.8,3.2078]
[1750084529904,28.134,2656.1,2655.8,3.2078]
[1750084530203,28.134,2656.1,2655.7,0.00564175]
[1750084530403,28.134,2656.1,2656.0,0.75282]
[1750084531110,3.2078,2656.2,2656.1,0.75279]
[1750084531305,0.00564175,2656.3,2656.2,0.75276]
[1750084531506,28.08264175,2656.3,2656.2,0.75276]
[1750084531703,0.00564175,2656.3,2656.2,0.75276]
[1750084531909,0.00564175,2656.3,2656.2,3.96056]
[1750084532115,10.09532175,2656.3,2655.7,0.00564175]
[1750084532418,0.75279,2656.1,2655.7,0.00564175]
[1750084532605,9.317,2656.1,2655.7,0.00564175]
[1750084532807,28.044,2656.0,2655.7,1.33884175]
[1750084533006,28.044,2656.0,2655.9,0.75285]
[1750084533810,28.79682,2656.0,2655.8,0.75286]
[1750084534015,28.044,2656.0,2655.9,0.75285]
[1750084534319,0.75287,2655.8,2655.7,0.00564175]
[1750084534507,28.79683,2656.0,2655.7,0.00564175]
[1750084534704,1.3207,2656.2,2655.7,0.00564175]
[1750084534919,37.279,2656.1,2655.7,1.23044175]
[1750084535222,0.75287,2655.8,2655.7,0.00564175]
[1750084535414,39.32443,2656.0,2655.7,0.00564175]
[1750084535709,37.279,2656.0,2655.8,0.75286]
[1750084535910,0.75287,2655.8,2655.7,0.00564175]
[1750084536110,37.279,2656.0,2655.2,3.2078]
[1750084536111,3.17472,2655.9,2655.2,3.2078]
[1750084536316,0.75308,2655.1,2654.9,0.75311]
[1750084536616,27.926,2655.0,2654.9,0.75313]
[1750084537314,0.75306,2655.2,2655.1,0.75307]
[1750084537514,36.906,2655.2,2655.1,3.96087]
[1750084537711,36.906,2655.2,2654.6,3.10782]
[1750084537712,36.906,2655.2,2654.9,0.75311]
[1750084538020,0.75313,2654.9,2654.6,1.2248]
[1750084538211,3.2078,2655.0,2654.6,1.2248]
[1750084538410,27.886,2654.8,2654.7,0.75319]
[1750084538711,27.886,2654.8,2654.7,3.96099]
[1750084539409,0.753,2655.4,2655.3,0.753]
[1750084539612,0.6747,2655.6,2655.2,3.2078]
[1750084539817,0.75302,2655.3,2655.2,3.2078]
[1750084540112,0.75309,2655.1,2655.0,0.75309]
[1750084540504,0.75309,2655.1,2654.6,4.4574]
[1750084540505,0.75304,2655.3,2654.9,3.2078]
[1750084540706,3.2078,2655.9,2655.2,3.2078]
[1750084540910,0.75291,2655.7,2655.6,0.75291]
[1750084541113,0.75298,2655.5,2655.4,0.75298]
[1750084541417,0.75298,2655.5,2655.0,1.88273]
[1750084541614,36.846,2655.8,2655.5,0.75294]
[1750084541808,0.75293,2655.6,2655.5,0.75294]
[1750084542006,38.1511,2655.8,2655.2,3.2078]
[1750084542210,0.75298,2655.5,2655.4,0.75298]
[1750084542517,38.1511,2655.8,2655.5,0.75295]
[1750084542518,0.75295,2655.6,2655.5,0.75295]
[1750084542722,9.011,2655.6,2655.2,3.2078]
[1750084543016,9.011,2655.6,2655.5,0.75296]
[1750084543210,36.786,2655.6,2655.5,0.75296]
[1750084543412,36.786,2655.6,2655.3,1.2589]
[1750084543610,36.786,2655.6,2655.3,0.753]
[1750084543916,0.75302,2655.3,2655.1,0.75305]
[1750084544107,27.733,2655.2,2655.0,0.75309]
[1750084544311,0.75307,2655.1,2654.7,1.88297]
[1750084544517,0.75307,2655.1,2655.0,0.7531]
[1750084544712,9.76299,2655.4,2655.3,0.753]
[1750084545021,36.724,2655.4,2655.3,0.753]
[1750084545215,36.724,2655.4,2654.9,3.2078]
[1750084545520,0.75304,2655.3,2655.2,0.75304]
[1750084545820,36.724,2655.4,2655.3,0.75302]
[1750084546112,0.75302,2655.3,2655.2,0.75302]
[1750084546313,0.75303,2655.3,2655.2,0.75303]
[1750084546515,0.75305,2655.2,2655.1,0.75306]
[1750084546716,0.7531,2655.0,2654.9,3.2078]
[1750084546912,0.75322,2654.6,2654.5,0.75323]
[1750084547115,0.75331,2654.3,2654.2,0.75331]
[1750084547309,27.637,2654.6,2653.6,3.2078]
[1750084547310,1.88333,2654.2,2653.6,3.2078]
[1750084547524,30.43804364,2654.1,2653.5,0.6582]
[1750084547816,30.43804364,2654.1,2653.4,1.2218]
[1750084547817,0.92558364,2654.0,2653.4,1.2218]
[1750084548020,0.75344,2653.8,2653.6,0.75348]
[1750084548215,28.39647,2653.7,2653.6,0.75348]
[1750084548416,27.643,2653.7,2653.6,0.7535]
[1750084549222,0.75351,2653.6,2653.4,0.75355]
[1750084549618,0.75353,2653.5,2653.3,3.96136]
[1750084549820,0.75351,2653.6,2653.4,0.75355]
[1750084550013,1.2982,2653.9,2653.2,0.0137]
[1750084550224,36.593,2653.8,2653.5,0.7535]
[1750084550418,0.7535,2653.6,2653.4,0.75354]
[1750084550622,0.7535,2653.6,2653.4,2.06234]
[1750084550814,0.75353,2653.5,2653.4,1.3088]
[1750084551118,0.75353,2653.5,2653.4,2.06234]
[1750084551322,3.2078,2654.0,2653.4,1.3088]
[1750084551518,9.012,2653.6,2653.5,0.75353]
[1750084552024,3.2078,2654.0,2653.8,0.75343]
[1750084552222,37.27743,2653.9,2653.4,1.3088]
[1750084552422,22.778,2654.1,2653.6,3.2078]
[1750084552620,36.513,2654.0,2653.7,1.3088]
[1750084552920,36.513,2654.0,2653.6,3.2078]
[1750084553113,0.75347,2653.7,2653.6,3.2078]
[1750084553320,1.2741,2653.9,2653.3,3.2078]
[1750084553520,3.2078,2653.7,2653.3,3.2078]
[1750084553725,0.75357,2653.4,2653.3,0.75358]
[1750084553922,27.491,2653.4,2653.3,0.75358]
[1750084554423,0.7535,2653.6,2653.5,0.75353]
[1750084554729,36.181,2653.6,2653.5,0.75353]
[1750084555430,36.152,2653.6,2653.5,0.75353]
[1750084555720,0.00565249,2653.8,2653.7,0.75347]
[1750084555924,27.42265249,2653.8,2653.7,0.75347]
[1750084556125,27.42065249,2653.8,2653.7,0.75347]
[1750084556818,27.42365249,2653.8,2653.7,5.75347]
[1750084557025,0.00565249,2653.8,2653.7,5.75347]
[1750084558118,0.00565249,2653.8,2653.7,0.75347]
[1750084558319,0.00565249,2653.8,2653.7,5.75347]
[1750084558629,9.66772319,2654.9,2654.8,0.75314]
[1750084558630,8.714,2654.9,2654.8,0.75314]
[1750084558924,36.82213,2654.9,2654.8,0.75314]
[1750084559425,36.80013,2654.9,2654.8,0.75314]
[1750084559724,8.714,2654.9,2654.8,0.75316]
[1750084559929,0.00565249,2655.1,2655.0,0.7531]
[1750084560230,27.32065249,2655.1,2654.7,1.2527]
[1750084560427,0.00565249,2655.1,2655.0,0.7531]
[1750084560621,27.31765249,2655.1,2655.0,2.0058]
[1750084560821,0.00565249,2655.1,2655.0,2.0058]
[1750084561223,0.75872249,2655.1,2655.0,0.7531]
[1750084561424,0.75316,2654.8,2654.7,0.75317]
[1750084561622,36.01065249,2655.1,2654.6,0.00565249]
[1750084561821,27.293,2655.0,2654.6,4.46615249]
[1750084562027,27.29765249,2655.1,2654.7,1.2527]
[1750084562331,27.29765249,2655.1,2655.0,0.7531]
[1750084562530,27.28765249,2655.1,2655.0,0.7531]
[1750084562725,27.28765249,2655.1,2654.9,3.96091]
[1750084562926,0.75319,2654.7,2654.6,0.00565249]
[1750084563234,0.75312,2655.0,2654.9,0.75312]
[1750084563435,36.73012,2655.0,2654.9,0.75312]
[1750084563630,35.977,2655.0,2654.6,1.23305249]
[1750084563927,0.75319,2654.7,2654.6,0.00565249]
[1750084564528,36.70619,2654.7,2654.6,0.00565249]
[1750084564926,1.88307,2654.6,2654.0,0.75337]
[1750084565133,0.75336,2654.2,2654.0,0.75338]
[1750084565330,27.219,2654.1,2653.7,1.2817]
[1750084565529,27.219,2654.1,2653.6,3.2078]
[1750084565730,0.75342,2653.9,2653.8,0.75343]
[1750084565928,31.6902,2654.1,2653.6,3.2078]
[1750084566228,0.92592545,2654.0,2653.9,0.75341]
[1750084566435,0.75342,2653.9,2653.7,0.75346]
[1750084566628,0.75348,2653.7,2653.5,0.75351]
[1750084566828,27.192,2653.6,2653.3,3.2078]
[1750084567028,28.4554,2653.6,2653.3,3.2078]
[1750084567237,27.192,2653.6,2653.5,0.75353]
[1750084568932,27.192,2653.6,2653.3,3.2078]
[1750084569332,27.192,2653.6,2653.0,3.2078]
[1750084569534,8.714,2653.5,2653.1,0.75363]
[1750084569732,8.714,2653.5,2652.9,0.75367]
[1750084569733,0.75365,2653.1,2652.9,0.75367]
[1750084569941,0.75371,2652.9,2652.7,0.75373]
[1750084570142,27.89672,2652.8,2652.7,0.75373]
[1750084570330,27.143,2652.8,2652.7,0.75373]
[1750084570530,0.75375,2652.7,2652.6,3.96157]
[1750084570839,27.143,2652.8,2652.7,0.75375]
[1750084571033,27.89672,2652.8,2652.7,0.75375]
[1750084571229,0.75375,2652.7,2652.6,3.96157]
[1750084571544,27.143,2652.8,2652.6,3.96157]
[1750084571833,27.143,2652.8,2652.4,0.01452]
[1750084571834,0.75375,2652.7,2652.4,0.01452]
[1750084572039,27.14865249,2652.8,2652.4,0.01452]
[1750084572228,27.14865249,2652.8,2652.7,0.75375]
[1750084572229,0.00565249,2652.8,2652.7,0.75375]
[1750084572432,27.09465249,2652.8,2652.7,0.75375]
[1750084572834,27.082,2653.4,2652.5,3.2078]
[1750084573033,27.082,2653.4,2653.2,0.7536]
[1750084573034,27.83557,2653.4,2653.2,0.7536]
[1750084573239,27.082,2653.4,2652.9,3.2078]
[1750084573446,27.082,2653.4,2653.3,0.75358]
[1750084573738,27.83555,2653.4,2653.3,0.75358]
[1750084573944,0.75358,2653.3,2653.2,0.7536]
[1750084574140,35.472,2653.3,2653.2,0.7536]
[1750084574442,35.472,2653.3,2653.1,0.00565249]
[1750084574643,0.75361,2653.2,2653.1,0.00565249]
[1750084575643,15.08621124,2653.2,2653.1,0.00565249]
[1750084575948,36.16661,2653.2,2653.1,0.00565249]
[1750084576242,38.37728665,2653.2,2653.1,0.00565249]
[1750084576447,37.09288665,2653.2,2653.1,0.00565249]
[1750084576746,0.75361,2653.2,2653.1,0.00565249]
[1750084576944,36.17561,2653.2,2653.1,0.75929249]
[1750084577144,36.17561,2653.2,2653.1,0.00565249]
[1750084578144,37.10346913,2653.2,2653.1,0.00565249]
[1750084578441,36.17561,2653.2,2653.1,0.00565249]
[1750084578648,36.15761,2653.2,2653.1,0.75929249]
[1750084578847,36.15761,2653.2,2653.1,0.00565249]
[1750084579344,37.50161,2653.2,2653.1,0.00565249]
[1750084579547,3.02513777,2653.2,2653.1,0.00565249]
[1750084579746,8.421,2653.2,2653.1,0.75929249]
[1750084579947,8.421,2653.2,2653.1,0.00565249]
[1750084579948,35.322,2653.2,2653.1,0.00565249]
[1750084580242,35.322,2653.2,2653.1,0.75929249]
[1750084580444,8.421,2653.2,2653.1,0.75929249]
[1750084580644,35.321,2653.2,2653.1,0.75929249]
[1750084580848,36.07461,2653.2,2653.1,0.00565249]
[1750084581045,35.321,2653.2,2653.1,0.75929249]
[1750084581744,36.07461,2653.2,2653.1,0.75929249]
[1750084581953,36.07461,2653.2,2653.1,0.00565249]
[1750084582448,0.75381,2652.5,2652.4,0.76834]
[1750084582651,26.836,2652.5,2652.4,0.76834]
[1750084582953,26.836,2652.5,2652.4,0.76836]
[1750084582954,27.58981,2652.5,2652.4,0.76836]
[1750084583447,26.836,2652.5,2652.4,0.76836]
[1750084583844,26.836,2652.5,2652.4,0.01452]
[1750084584049,26.836,2652.5,2651.9,0.6202]
[1750084584050,37.43125519,2652.5,2651.9,0.6202]
[1750084584250,35.219,2652.4,2652.3,0.75387]
[1750084585255,35.213,2652.4,2652.3,0.75387]
[1750084585849,35.186,2652.4,2652.1,0.75392]
[1750084586050,0.75389,2652.3,2652.2,0.7539]
[1750084586248,0.7539,2652.2,2652.1,0.7539]
[1750084586549,27.50789,2652.2,2652.1,0.75392]
[1750084587252,26.754,2652.2,2651.8,3.2078]
[1750084587443,0.75393,2652.1,2652.0,0.75393]
[1750084587849,0.75395,2652.0,2651.9,0.75395]
[1750084588044,27.46695,2652.0,2651.9,0.75395]
[1750084588250,26.713,2652.0,2651.9,0.75395]
[1750084588450,3.96733249,2652.3,2652.2,0.75389]
[1750084588746,38.32045249,2652.3,2651.9,1.242]
[1750084588956,0.00565249,2652.3,2652.2,0.75389]
[1750084589149,26.67665249,2652.3,2652.2,1.99589]
[1750084590548,0.00565249,2652.3,2652.2,1.99589]
[1750084590750,26.67365249,2652.3,2652.2,1.99589]
[1750084591247,9.1768,2652.6,2652.5,0.75381]
[1750084591248,8.423,2652.6,2652.5,0.75381]
[1750084591451,0.75383,2652.5,2652.4,0.75381]
[1750084591653,0.75383,2652.5,2652.4,1.99881]
[1750084592553,0.75383,2652.5,2652.3,1.40025]
[1750084592554,0.75384,2652.4,2652.3,1.40025]
[1750084592754,27.36183,2652.5,2652.4,0.75384]
[1750084593653,0.75383,2652.4,2652.3,0.75384]
[1750084593855,0.75385,2652.4,2652.3,0.75383]
[1750084594051,0.75386,2652.3,2652.2,0.00565249]
[1750084594656,10.42158319,2652.3,2652.2,0.00565249]
[1750084594853,1.68561465,2652.3,2652.2,0.00565249]
[1750084595464,1.88474,2652.2,2651.3,3.2078]
[1750084595655,0.75412,2651.4,2651.3,3.96193]
[1750084595859,27.25812,2651.4,2651.3,3.2078]
[1750084596160,26.504,2651.4,2651.3,3.96195]
[1750084596362,26.504,2651.4,2651.3,5.23295]
[1750084596561,26.487,2652.0,2651.3,9.4788]
[1750084596757,26.487,2652.0,2651.9,0.75398]
[1750084597154,0.75398,2651.9,2651.8,0.75399]
[1750084597462,0.75399,2651.9,2651.8,0.75399]
[1750084597863,0.75403,2651.7,2651.6,2.02504]
[1750084598064,26.483,2651.7,2651.6,2.02504]
[1750084598364,27.23703,2651.7,2651.6,2.02504]
[1750084598663,26.483,2651.7,2651.6,2.02504]
[1750084599066,0.75397,2652.0,2651.9,0.75395]
[1750084599359,9.05073516,2652.0,2651.9,0.75395]
[1750084599562,35.49173516,2652.0,2651.9,0.75395]
[1750084599858,26.429,2652.0,2651.9,0.75395]
[1750084600065,28.11484091,2652.0,2651.9,0.75395]
[1750084600262,27.36089091,2652.0,2651.9,0.75395]
[1750084600460,11.3268,2652.1,2651.9,3.2078]
[1750084600461,8.119,2652.1,2651.9,3.2078]
[1750084600766,8.119,2652.1,2652.0,2.04185]
[1750084601062,35.45942754,2652.1,2652.0,2.04185]
[1750084601254,9.05442754,2652.1,2652.0,2.04185]
[1750084601458,34.524,2652.1,2652.0,2.04185]
[1750084601762,0.75386,2652.4,2652.1,1.8848]
[1750084602063,35.44696324,2652.3,2652.2,0.75389]
[1750084602260,22.8,2652.5,2652.4,0.75384]
[1750084602460,58.96971229,2652.5,2652.4,0.75384]
[1750084602866,31.85590229,2652.5,2652.4,0.75384]
[1750084603167,0.75386,2652.3,2652.2,3.96168]
[1750084603362,0.75386,2652.3,2652.2,3.2078]
[1750084603569,0.75392,2652.2,2651.9,3.2078]
[1750084603867,26.347,2652.1,2652.0,0.75395]
[1750084604572,26.347,2652.1,2651.9,3.2078]
[1750084604573,26.347,2652.1,2651.9,3.96176]
[1750084604861,26.347,2652.1,2652.0,0.75395]
[1750084605264,27.10092,2652.1,2652.0,0.75395]
[1750084605866,26.347,2652.1,2652.0,0.75395]
[1750084606068,27.10092,2652.1,2652.0,0.75395]
[1750084606262,27.10092,2652.1,2651.5,1.88519]
[1750084606263,0.75399,2651.9,2651.5,1.88521]
[1750084606465,26.279,2651.8,2651.7,0.75403]
[1750084606663,26.279,2651.8,2651.7,3.96183]
[1750084606859,26.279,2651.8,2651.7,3.2078]
[1750084607063,27.03301,2651.8,2651.7,3.96183]
[1750084607258,27.96939383,2651.8,2651.7,1.25884102]
[1750084607568,35.31338383,2651.8,2651.7,1.25884102]
[1750084607867,34.377,2651.8,2651.7,4.46664102]
[1750084608268,26.265,2651.8,2651.7,4.46669512]
[1750084608665,11.45789679,2652.2,2652.1,0.75392]
[1750084608869,9.05632945,2652.2,2652.1,1.25878512]
[1750084609071,36.04421945,2652.2,2652.1,0.50486512]
[1750084609461,44.29431624,2652.2,2652.1,1.25887771]
[1750084609660,44.29431624,2652.2,2652.1,0.50495771]
[1750084609865,0.75395,2652.0,2651.9,0.75397]
[1750084610166,0.75395,2652.0,2651.9,0.5050015]
[1750084610362,1.69027945,2652.0,2651.9,0.5050015]
[1750084610962,1.69027945,2652.0,2651.6,0.75406]
[1750084610963,0.75407,2651.7,2651.6,0.75406]
[1750084611163,36.02039945,2651.7,2651.6,0.75406]
[1750084611467,36.02038945,2651.7,2651.6,0.75406]
[1750084611869,0.75409,2651.6,2651.5,0.75409]
[1750084612072,1.69040945,2651.6,2651.5,0.75409]
[1750084612273,0.75409,2651.5,2651.4,3.9619]
[1750084612471,0.93632945,2651.5,2651.4,3.9619]
[1750084613077,1.69041945,2651.5,2651.4,3.9619]
[1750084613276,0.93632945,2651.5,2651.4,3.9619]
[1750084613474,1.69220792,2651.6,2651.5,0.75409]
[1750084613674,1.69220795,2651.6,2651.5,0.75409]
[1750084614377,0.93813795,2651.6,2651.5,0.75409]
[1750084614570,26.123,2651.9,2651.8,0.75401]
[1750084614877,26.123,2651.9,2651.8,3.96181]
[1750084615573,7.817,2652.2,2652.1,0.75392]
[1750084615770,33.945,2652.2,2652.1,0.75392]
[1750084616569,23.4704,2652.5,2652.4,0.75384]
[1750084617174,0.75387,2652.4,2652.3,0.75385]
[1750084617380,57.3804,2652.5,2651.9,1.88495]
[1750084617578,34.65085,2652.4,2652.3,0.75384]
[1750084617787,0.75388,2652.3,2652.2,0.75387]
[1750084618174,0.75385,2652.4,2652.3,0.75386]
[1750084618479,34.63085,2652.4,2652.3,0.75385]
[1750084618777,34.62685,2652.4,2652.3,0.75385]
[1750084618978,0.75388,2652.3,2652.2,0.75387]
[1750084619178,8.25009679,2652.3,2651.8,3.2078]
[1750084619479,9.00405679,2652.0,2651.9,0.75398]
[1750084619781,5.09248,2652.3,2652.1,0.75392]
[1750084619782,8.25009679,2652.2,2652.1,0.75392]
[1750084619982,42.85498679,2652.2,2652.1,0.75392]
[1750084620375,34.60489,2652.2,2652.1,0.75392]
[1750084620670,3.2078,2652.3,2652.2,0.75389]
[1750084620879,34.58488,2652.3,2652.2,0.75389]
[1750084621475,0.75394,2652.1,2652.0,0.75393]
[1750084621680,0.75398,2651.9,2651.8,3.2078]
[1750084621976,26.76098,2651.9,2651.8,3.2078]
[1750084622876,26.76098,2651.9,2651.8,0.75401]
[1750084623982,0.75401,2651.8,2651.7,1.38411]
[1750084624183,26.007,2651.9,2651.8,0.75401]
[1750084624478,8.56988,2652.3,2652.2,0.75389]
[1750084624670,33.729,2652.3,2652.2,0.75389]
[1750084624981,41.97909679,2652.3,2651.9,0.75396]
[1750084625288,41.97909679,2652.3,2652.1,0.7539]
[1750084625289,0.75392,2652.2,2652.1,0.7539]
[1750084625576,22.8,2652.5,2652.1,3.2078]
[1750084625776,0.00565249,2652.7,2652.6,0.75378]
[1750084626182,2.49e-06,2652.7,2652.6,0.75378]
[1750084626382,2.49e-06,2652.7,2652.6,14.00387679]
[1750084627986,2.49e-06,2652.7,2652.6,14.30321468]
[1750084628281,2.49e-06,2652.7,2652.6,6.05311789]
[1750084628474,5.47210146,2654.0,2653.6,0.75349]
[1750084628475,7.816,2653.7,2653.6,0.75349]
[1750084628679,3.2078,2654.0,2653.9,0.75341]
[1750084628884,25.845,2654.2,2653.8,3.2078]
[1750084629185,25.845,2654.2,2654.1,0.75335]
[1750084629383,0.75331,2654.3,2654.1,0.75335]
[1750084629586,0.75332,2654.2,2654.0,0.75338]
[1750084629887,3.2078,2654.1,2653.5,2.0557]
[1750084630084,8.25009679,2653.7,2653.6,0.75349]
[1750084630285,25.83,2653.7,2653.6,0.75349]
[1750084630481,3.2078,2654.1,2653.5,1.3022]
[1750084630688,33.645,2654.0,2653.9,0.75341]
[1750084630883,3.96116,2654.1,2654.0,0.75338]
[1750084631083,33.629,2654.1,2653.7,3.2078]
[1750084631283,34.38236,2654.1,2653.8,1.3022]
[1750084631583,25.807,2654.1,2654.0,3.2078]
[1750084631884,25.807,2654.1,2653.6,0.75347]
[1750084632081,25.807,2654.1,2653.5,0.75352]
[1750084632082,8.25009679,2653.9,2653.5,0.75352]
[1750084632388,8.25009679,2653.9,2653.4,1.9451]
[1750084632389,16.06409679,2653.9,2653.4,1.9451]
[1750084632587,0.75348,2653.7,2653.5,0.75351]
[1750084632791,25.798,2653.6,2653.5,0.75351]
[1750084633181,0.75346,2653.8,2653.3,1.2834]
[1750084633384,25.779,2653.7,2653.4,0.75352]
[1750084633584,25.779,2653.7,2653.3,1.2834]
[1750084633987,25.779,2653.7,2653.6,0.75349]
[1750084634286,0.75358,2653.3,2653.2,3.2078]
[1750084634490,0.75358,2653.3,2652.9,0.75368]
[1750084634491,33.574,2653.3,2652.9,0.75368]
[1750084634789,0.75369,2652.9,2652.8,3.2078]
[1750084634988,0.75369,2652.9,2652.4,3.2078]
[1750084634989,25.755,2652.9,2652.4,3.2078]
[1750084635183,16.06309679,2652.8,2652.7,0.75375]
[1750084635489,16.06309679,2652.8,2652.4,3.2078]
[1750084635490,0.75376,2652.7,2652.5,0.75378]
[1750084635684,0.75376,2652.7,2652.3,1.9265]
[1750084635685,19.27089679,2652.8,2652.3,2.68035]
[1750084635882,0.75391,2652.2,2651.8,3.2078]
[1750084636100,33.552,2652.1,2652.0,0.75394]
[1750084636287,33.551,2652.1,2651.9,0.75395]
[1750084636485,33.551,2652.1,2652.0,0.75395]
[1750084636895,8.25009679,2652.3,2651.9,1.3196]
[1750084637187,33.547,2652.2,2651.9,1.3196]
[1750084637390,34.30089,2652.2,2652.0,0.75393]
[1750084637590,33.547,2652.2,2652.1,0.75392]
[1750084637793,34.30091,2652.2,2651.8,3.2078]
[1750084637988,33.547,2652.2,2651.8,3.2078]
[1750084638392,34.3009,2652.2,2652.0,0.75394]
[1750084638600,33.547,2652.2,2652.0,0.75394]
[1750084638897,34.3009,2652.2,2652.0,0.75394]
[1750084639098,34.3009,2652.2,2652.1,0.75392]
[1750084639301,33.547,2652.2,2652.1,0.75392]
[1750084639594,34.30091,2652.2,2652.0,0.75393]
[1750084639799,34.30091,2652.2,2651.5,3.2078]
[1750084639800,33.547,2652.2,2651.5,3.2078]
[1750084639991,8.25009679,2651.9,2651.5,3.2078]
[1750084640311,8.25009679,2651.6,2651.4,0.75411]
[1750084640595,26.44009,2651.5,2651.3,0.75413]
[1750084640894,8.56909,2651.5,2651.4,0.75412]
[1750084641094,34.25709,2651.5,2651.4,0.75412]
[1750084641289,33.503,2651.5,2651.4,0.75412]
[1750084642495,0.75434,2650.7,2649.5,5.09443]
[1750084642791,0.00565249,2650.4,2650.3,0.75443]
[1750084642997,25.84165249,2650.4,2650.3,0.75443]
[1750084643696,0.00565249,2650.4,2650.3,3.96223]
[1750084643901,0.00565249,2650.4,2650.1,1.247]
[1750084644194,0.00565249,2650.4,2650.3,0.75443]
[1750084644800,0.00565249,2650.4,2650.1,1.247]
[1750084645001,26.59846,2650.3,2650.1,2.00148]
[1750084645194,7.651,2650.2,2649.5,0.6748]
[1750084645501,33.493,2650.1,2649.6,5.09438]
[1750084645701,33.493,2650.1,2650.0,0.75452]
[1750084645903,3.2078,2650.3,2650.2,0.75446]
[1750084646098,36.7038,2650.3,2650.2,0.75446]
[1750084646603,3.2078,2650.3,2650.2,0.75446]
[1750084646903,29.0538,2650.3,2650.2,0.75446]
[1750084647099,25.846,2650.3,2650.2,0.75446]
[1750084647603,0.00565249,2650.4,2650.3,0.75443]
[1750084647899,9.70444334,2650.9,2650.3,0.75443]
[1750084647900,29.78906,2650.9,2650.8,0.75429]
[1750084648205,29.0348,2650.9,2650.8,0.75429]
[1750084648505,25.827,2650.9,2650.8,0.75429]
[1750084649199,26.58926,2650.9,2650.8,0.75429]
[1750084649398,25.835,2650.9,2650.8,0.75429]
[1750084649906,26.55328,2650.9,2650.8,0.75428]
[1750084650108,0.75432,2650.8,2650.7,0.75431]
[1750084650308,26.55328,2650.9,2650.8,0.75429]
[1750084651099,25.799,2650.9,2650.8,0.75429]
[1750084651508,0.00565249,2651.1,2650.8,0.75429]
[1750084651509,0.00565249,2651.1,2651.0,0.75423]
[1750084651704,33.44765249,2651.1,2651.0,0.75423]
[1750084651906,7.65965249,2651.1,2651.0,0.75423]
[1750084652205,33.41865249,2651.1,2651.0,0.75423]
[1750084653209,34.17285249,2651.1,2651.0,0.75423]
[1750084653897,33.41865249,2651.1,2651.0,0.75423]
[1750084654097,34.17285249,2651.1,2650.7,1.3054]
[1750084654295,34.17285249,2651.1,2650.6,0.00565249]
[1750084654296,43.12309583,2651.1,2650.6,1.89150249]
[1750084654499,33.41865249,2651.1,2651.0,0.75423]
[1750084655101,0.00565249,2651.1,2651.0,0.75423]
[1750084655402,25.70965249,2651.1,2651.0,0.75423]
[1750084657708,26.46385249,2651.1,2651.0,0.75423]
[1750084657903,33.36465249,2651.1,2651.0,0.75423]
[1750084658107,25.71065249,2651.1,2651.0,0.75423]
[1750084658308,0.00565249,2651.1,2651.0,0.75423]
[1750084658907,0.00565249,2651.1,2651.0,3.96203]
[1750084660608,0.00565249,2651.1,2651.0,0.75423]
[1750084660804,0.75985249,2651.1,2651.0,0.75423]
[1750084661809,0.75429,2650.9,2650.8,0.75425]
[1750084662115,26.45729,2650.9,2650.8,0.75425]
[1750084662616,26.45726,2650.9,2650.8,0.75425]
[1750084663108,0.75432,2650.7,2650.6,0.00565249]
[1750084663305,10.45876334,2650.7,2650.6,0.00565249]
[1750084663507,10.45876334,2650.7,2650.6,0.76000249]
[1750084663709,10.45876334,2650.7,2650.6,0.00565249]
[1750084664002,9.70444334,2650.7,2650.6,0.76000249]
[1750084664207,7.654,2651.0,2650.7,1.8858]
[1750084664407,7.654,2651.0,2650.9,0.75426]
[1750084664606,0.00565249,2651.1,2651.0,0.75423]
[1750084665020,25.70865249,2651.1,2651.0,0.75423]
[1750084667111,0.00565249,2651.1,2651.0,0.75423]
[1750084667317,25.70865249,2651.1,2651.0,0.75423]
[1750084667514,0.00565249,2651.1,2651.0,3.96203]
[1750084667905,0.00565249,2651.1,2651.0,5.20113]
[1750084668313,0.00565249,2651.1,2651.0,0.75423]
[1750084669221,0.00565249,2651.1,2651.0,2.04513]
[1750084669620,0.00565249,2651.1,2651.0,5.25293]
[1750084670211,2.49e-06,2651.1,2651.0,10.25293]
[1750084673229,7.654,2651.8,2651.0,10.25293]
[1750084673521,7.654,2652.2,2652.1,0.75392]
[1750084673724,22.811,2652.5,2652.4,0.75383]
[1750084673922,3.2078,2652.6,2652.5,0.75381]